Cogmind - Beta 15 @@@ ROGUE MODE // 2025.06.03 @ 22:20:00 Player: HSFM Result: Destroyed by YI-UF0 with YI-UF0's Doublenader Performance ------------- Evolutions (1) 500 Regions Visited (3) 600 Robots Destroyed (23) 115 Value Destroyed (504) 504 Prototype IDs (2) 40 Alien Tech Used (0) 0 Bonus (0) 0 TOTAL SCORE: 1759 Bonus ------- None Cogmind --------- Core Integrity 0/400 Matter 80/300 Energy 38/100 System Corruption 5% Temperature Cool (0) Movement Core (350) Ox6 Location -9/Mines Parts ------- > --- POWER (1) -------- (None) > --- PROPULSION (3) --- (None) > --- UTILITY (3) ------ Large Storage Unit > --- WEAPON (2) ------- Mining Laser > --- INVENTORY (15) --- Medium Matter Pod (0) Improved Trap Extractor (0/6) Grenade Launcher Peak State ------------ > --- POWER ------------ Cooled Ion Engine > --- PROPULSION ------- Aluminum Leg Improved Titanium Leg > --- UTILITY ---------- Large Storage Unit Improved Terrain Scanner > --- WEAPON ----------- Remote Datajack > --- INVENTORY -------- Medium Matter Pod Improved Trap Extractor Assault Rifle Grenade Launcher Mining Laser [Rating: 16] Favorites ----------- Power Light Nuclear Core Engine Ion Engine Power Core Light Nuclear Core Propulsion Aluminum Leg Leg Aluminum Leg Utility Small Storage Unit Device Sensor Array Storage Small Storage Unit Protection Hardened Light Armor Plating Weapon Assault Rifle Energy Cannon Advanced Beam Cannon Ballistic Gun Assault Rifle Launcher Grenade Launcher Special Weapon Remote Datajack Build | -11 -10 -9 -9 ------- Run | Yrd Mat Mat Min Slots Evolved 2 | . . 2 . Power . | . . . . Propulsion 1 | . . 1 . Utility 1 | . . 1 . Weapon . | . . . . Parts Attached 23 | 7 3 6 7 Power 4 | 2 1 . 1 Engine 3 | 2 . . 1 Core 1 | . 1 . . Reactor . | . . . . Propulsion 5 | 2 . 1 2 Treads . | . . . . Leg 5 | 2 . 1 2 Wheel . | . . . . Hover . | . . . . Flight . | . . . . Utility 7 | 1 1 3 2 Device 4 | . 1 1 2 Storage 2 | 1 . 1 . Processor . | . . . . Hackware . | . . . . Protection 1 | . . 1 . Artifact . | . . . . Weapon 7 | 2 1 2 2 Energy Gun . | . . . . Energy Cannon 1 | . . 1 . Ballistic Gun 2 | 2 . . . Ballistic Cannon . | . . . . Launcher 2 | . 1 1 . Special Weapon 2 | . . . 2 Impact Weapon . | . . . . Slashing Weapon . | . . . . Piercing Weapon . | . . . . Special Melee Weapon . | . . . . Unidentified Prototypes 2 | . . 1 1 Corrupted Parts 1 | . . . 1 System Corruption 5 | . . . 5 Parts Lost 12 | . . . 12 Power 1 | . . . 1 Propulsion 5 | . . . 5 Utility 2 | . . . 2 Weapon 4 | . . . 4 Highest Loss Streak 6 | . . . 6 To Critical Strikes . | . . . . Average Backups 5 | . 4 7 6 Power . | . . . . Propulsion . | . . . . Utility 2 | . 2 3 2 Weapon 3 | . 2 4 3 Tool/Special . | . . . . Unused Backups 5 | . . . 5 Power . | . . . . Propulsion . | . . . . Utility 1 | . . . 1 Weapon 4 | . . . 4 Tool/Special . | . . . . Average Slot Usage (%) 78 | . 92 85 46 Engine 2 | . 4 . . Core 8 | . 9 11 2 Leg 27 | . 28 33 17 Device 8 | . 6 12 6 Storage 11 | . 14 11 6 Energy Cannon 2 | . . 4 2 Ballistic Gun 7 | . 17 . . Launcher 9 | . 10 12 2 Special Weapon 1 | . . . 6 Peak Build Rating 16 | 6 9 15 16 Average Rating 9 | 5 7 12 10 On Entrance 7 | . 6 9 15 Naked Turns 16 | . . . 16 Heaviest Build 34 | 14 16 34 34 Greatest Support 30 | 20 20 30 30 Greatest Overweight (x) 1 | . . 1 1 Average Overweight (x) . | . . . . Largest Inventory Capacity 15 | 8 8 15 15 Average Capacity 10 | 7 8 14 11 Most Carried 12 | 3 7 11 12 Average Carried 5 | . 4 7 6 Final Capacity 15 | 8 8 15 15 Final Carried 11 | 3 7 11 3 Class Distribution -------------------- 100% | Mutant Dominant Class ---------------- Mutant | -10/Materials Mutant | -9/Materials Mutant | -9/Mines Resources | -11 -10 -9 -9 ----------- Run | Yrd Mat Mat Min Matter Collected 541 | 284 128 81 48 Remotely . | . . . . Salvage Created 479 | 14 331 134 . Parts 38 | 4 22 12 . Haulers Intercepted 1 | . . 1 . Recyclers Shooed 1 | . 1 . . Parts Field Recycled . | . . . . Retrieved Matter . | . . . . Parts Self-Destructed . | . . . . Prevented . | . . . . Kills | -11 -10 -9 -9 ------- Run | Yrd Mat Mat Min Combat Hostiles Destroyed 15 | . 10 5 . Guns 4 | . 4 . . AOE 11 | . 6 5 . Classes Destroyed 9 | 1 6 2 . Builder 1 | . 1 . . Tunneler 1 | 1 . . . Hauler 1 | . . 1 . Recycler 2 | . 2 . . Operator 1 | . 1 . . Watcher 2 | . 1 1 . Swarmer 6 | . 3 3 . Grunt 8 | . 7 1 . Sentry 1 | . . 1 . Best Kill Streak 7 | 1 7 4 . Combat Bots Only 6 | . 6 4 . Max Kills in Single Turn 2 | 1 2 2 . Gunslinging . | . . . . Exploded 2 | . 2 2 . Melee . | . . . . Uniques/NPCs Destroyed . | . . . . Combat | -11 -10 -9 -9 -------- Run | Yrd Mat Mat Min Hostile Shots Fired 115 | . 49 7 59 Missed 31 | . 15 2 14 Hits 84 | . 34 5 45 Melee 7 | . . . 7 Projectile 77 | . 34 5 38 AOE 22 | . . . 22 Critical Strikes 1 | . . . 1 Damage Taken 1706 | . 430 66 1210 Core 493 | . 74 6 413 Absorbed by Shields . | . . . . Core Remaining (%) 85 | 100 70 . . Volleys Fired 50 | 4 28 6 12 Largest 2 | 2 2 2 1 Hottest 101 | 40 50 101 100 Shots Fired 77 | 7 47 11 12 Gun 41 | 7 34 . . Cannon 15 | . . 5 10 Launcher 19 | . 13 6 . Special 2 | . . . 2 Kinetic 41 | 7 34 . . Thermal 17 | . . 5 12 Explosive 19 | . 13 6 . Electromagnetic . | . . . . Robot Hit Streak 9 | 4 6 4 9 Robot Miss Streak 3 | 1 3 2 1 Penetration Max . | . . . . Secondary Targets . | . . . . Shots Hit Robots 44 | 4 25 6 9 Core Hits 38 | 2 29 6 1 Critical Kills . | . . . . Critical Parts Destroyed 2 | . 2 . . Critical Strikes 2 | . 2 . . Destroy 2 | . 2 . . Melee Attacks . | . . . . Impact . | . . . . Slashing . | . . . . Piercing . | . . . . Sneak Attacks . | . . . . Combat Hostiles . | . . . . Follow-up Attacks . | . . . . Damage Inflicted 1454 | 48 854 366 186 Guns 252 | 48 204 . . Cannons 226 | . . 40 186 Explosions 976 | . 650 326 . Melee . | . . . . Ramming . | . . . . Kinetic 252 | 48 204 . . Thermal 226 | . . 40 186 Explosive 976 | . 650 326 . Electromagnetic . | . . . . Impact . | . . . . Slashing . | . . . . Piercing . | . . . . Highest Corruption 5 | . . . 5 Average Corruption 5 | . . . 5 Corruption Purged . | . . . . Corruption Blocked . | . . . . Effects 6 | . . . 6 Message Errors 1 | . . . 1 Matter Fused 1 | . . . 1 Energy Discharges 2 | . . . 2 Data Loss (major) 1 | . . . 1 Alerts 1 | . . . 1 Overload Shots . | . . . . Overflow Damage 19 | . . 19 . Projectiles . | . . . . Explosions 19 | . . 19 . Melee . | . . . . Knockbacks . | . . . . Impact . | . . . . Kinetic . | . . . . Secondary . | . . . . Self-Inflicted Damage 53 | . 32 21 . Shots 3 | . 2 1 . Rammed . | . . . . Targets Rammed 2 | . 1 . 1 Kicked 2 | . 1 . 1 Crushed . | . . . . Highest Temperature 308 | . 13 78 308 Average Temperature 72 | . 5 38 156 Received Heat Transfer 276 | . 210 6 60 Effects 1 | . . . 1 Damage (minor) 1 | . . . 1 Siege Activations . | . . . . Martial Activations . | . . . . Shielding Activations . | . . . . Robots Disrupted . | . . . . Combat Hostiles . | . . . . Robots Corrupted . | . . . . Combat Hostiles . | . . . . Parts Fried . | . . . . Impact Corruptions . | . . . . Robots Melted . | . . . . Combat Hostiles . | . . . . Parts Melted . | . . . . Heat Transferred 407 | . . 74 333 Parts Sabotaged . | . . . . Parts Stolen . | . . . . Parts Stripped . | . . . . Power Chain Reactions . | . . . . Alert | -11 -10 -9 -9 ------- Run | Yrd Mat Mat Min Maximum Alert Level . | . . . . Low Security (%) 100 | 100 100 100 100 Level 1 . | . . . . Level 2 . | . . . . Level 3 . | . . . . Level 4 . | . . . . Level 5 . | . . . . High Security . | . . . . Max Security . | . . . . Peak Influence 188 | 5 188 169 62 Initial 76 | . . 76 62 Average 53 | . 101 35 9 Influence Increases 592 | 5 358 227 2 Destroy 0b10 Robot/C 300 | . 200 100 . Destroy 0b10 Robot/NC 40 | 5 25 10 . Destroy Leader 76 | . 52 24 . Successful Hack 22 | . 22 . . Disable Machine 60 | . 15 45 . Destroy Structure 94 | . 44 48 2 Influence Decreases 592 | 5 178 246 163 Entered New Map 203 | . . 104 99 Time Decay 347 | 5 178 142 22 Lost Part 42 | . . . 42 Squads Dispatched 3 | . 3 . . Investigation 1 | . 1 . . Extermination . | . . . . Reinforcement 2 | . 2 . . Assault . | . . . . Garrison . | . . . . Intercept . | . . . . Searches Triggered . | . . . . Construction Impeded . | . . . . Haulers Reinforced . | . . . . Active Scanning Responses . | . . . . Cargo Convoy Interrupts . | . . . . Stealth | -11 -10 -9 -9 --------- Run | Yrd Mat Mat Min Distress Signals 1 | . 1 . . Communications Jammed . | . . . . Distress Signals . | . . . . Times Spotted 31 | . 15 5 11 Peak Tracking Total 6 | . 6 3 5 Tactical Retreats 1 | . . . 1 Traps | -11 -10 -9 -9 ------- Run | Yrd Mat Mat Min Traps Triggered 1 | . . . 1 Indirectly . | . . . . Trap Hack Attempts . | . . . . Triggered . | . . . . Disarmed 1 | . 1 . . Reprogrammed . | . . . . Reused . | . . . . Traps Extracted . | . . . . Installed . | . . . . Triggered . | . . . . Machines | -11 -10 -9 -9 ---------- Run | Yrd Mat Mat Min Machines Disabled 4 | . 1 3 . Max in Single Turn 1 | . 1 1 . Machines Repaired . | . . . . Machines Dismantled . | . . . . Machines Sabotaged . | . . . . Overloaded Fab Kills . | . . . . Hacking | -11 -10 -9 -9 --------- Run | Yrd Mat Mat Min Machines Accessed 9 | . 5 3 1 Terminals 6 | . 5 1 . Fabricators . | . . . . Repair Stations . | . . . . Recycling Units 1 | . . 1 . Scanalyzers 1 | . . 1 . Garrison Access . | . . . . Total Hacks 29 | . 20 8 1 Successful 13 | . 9 3 1 Failed 16 | . 11 5 . Catastrophic 4 | . 4 . . Database Lockouts . | . . . . Manual . | . . . . Terminals 24 | . 20 4 . Fabricators . | . . . . Repair Stations . | . . . . Recycling Units 1 | . . 1 . Scanalyzers 3 | . . 3 . Garrison Access . | . . . . Terminal Hacks 10 | . 9 . 1 Record 6 | . 6 . . Open Door 1 | . . . 1 Emergency Access Points 1 | . 1 . . Disarm Traps 1 | . 1 . . Recall Reinforcements 1 | . 1 . . Fabricator Hacks . | . . . . Repair Station Hacks . | . . . . Recycling Unit Hacks 1 | . . 1 . Report Inventory 1 | . . 1 . Scanalyzer 2 | . . 2 . Insert Component 1 | . . 1 . Analyze 1 | . . 1 . Garrison Access Hacks . | . . . . Unauthorized Hacks . | . . . . Terminals . | . . . . Fabricators . | . . . . Repair Stations . | . . . . Recycling Units . | . . . . Scanalyzers . | . . . . Garrison Access . | . . . . Data Cores Recovered 1 | . 1 . . Used 1 | . 1 . . Hacking Detections 7 | . 5 2 . Full Trace Events 3 | . 2 1 . Feedback Events . | . . . . Feedback Blocked . | . . . . Robot Schematics Acquired . | . . . . Robots Built . | . . . . Authchips . | . . . . Time . | . . . . Total Robot Build Rating . | . . . . Part Schematics Acquired 1 | . . 1 . Parts Built . | . . . . Authchips . | . . . . Time . | . . . . Total Part Build Rating . | . . . . Parts Repaired . | . . . . Time . | . . . . Parts Recycled . | . . . . Recycled Matter . | . . . . Retrieved Matter . | . . . . Retrieved Components . | . . . . Parts Scanalyzed 1 | . . 1 . Part Schematics Acquired 1 | . . 1 . Parts Damaged . | . . . . Bothacking | -11 -10 -9 -9 ------------ Run | Yrd Mat Mat Min Used RIF Installer . | . . . . Robots Hacked . | . . . . Non-combat . | . . . . Combat . | . . . . Robot Hacks Applied . | . . . . Relay Couplers Released . | . . . . Fabnet Peak Effective % . | . . . . Robots Rewired . | . . . . Allies Hacked . | . . . . Hacks Repelled . | . . . . Allies | -11 -10 -9 -9 -------- Run | Yrd Mat Mat Min Total Allies . | . . . . Largest Group . | . . . . Highest-Rated Group . | . . . . Highest-Rated Ally . | . . . . Total Orders . | . . . . Ally Attacks . | . . . . Total Damage . | . . . . Kills . | . . . . Allies Corrupted . | . . . . Allies Melted . | . . . . Intel | -11 -10 -9 -9 ------- Run | Yrd Mat Mat Min Active Infowar (turns) 833 | . 253 419 161 Sensors 462 | . . 418 44 Terrain 117 | . . . 117 Seismic 308 | . 253 55 . Robot Analysis Total . | . . . . Derelict Logs Recovered . | . . . . Drone Launches . | . . . . Drone Recoveries . | . . . . Exploration | -11 -10 -9 -9 ------------- Run | Yrd Mat Mat Min Turns Passed 1329 | 106 519 419 285 Spaces Moved 802 | 69 328 262 143 Core 38 | 3 . . 35 Treads . | . . . . Legs 764 | 66 328 262 108 Wheels . | . . . . Hover . | . . . . Flight . | . . . . Fastest Speed 50 | 50 120 120 50 Average Speed 129 | 116 120 147 124 Slowest Speed 200 | 120 120 190 200 Overloaded Moves . | . . . . Propulsion Burnouts . | . . . . Robots Hopped . | . . . . Potential Cave-ins . | . . . . Cave-ins Triggered . | . . . . Exploration Rate (%) 31 | 5 70 25 26 Regions Visited 3 Branch Regions 1 Pre-discovered Areas . | . . . . Known Exits Taken . | . . . . Unknown Exits Taken 3 | 1 1 1 . Scrap Searched 1 | . . . 1 Spaces Dug 2 | . . . 2 Terrain Destroyed 113 | . 59 52 2 Melee . | . . . . Projectile 2 | . . . 2 AOE 111 | . 59 52 . Terrain Rammed . | . . . . Walls Destroyed . | . . . . Machines Disabled . | . . . . Actions | -11 -10 -9 -9 --------- Run | Yrd Mat Mat Min Total 1007 | 85 405 287 230 Wait 96 | . 39 . 57 Move 799 | 68 327 261 143 Hop . | . . . . Pick Up 19 | 4 6 7 2 Fast Attach 12 | 6 . . 6 Attach 10 | . 1 5 4 Detach 5 | . . 4 1 Swap 8 | 1 2 2 3 Drop 6 | 2 1 2 1 Fire 50 | 4 28 6 12 Melee . | . . . . Ram . | . . . . Kick 2 | . 1 . 1 Crush . | . . . . Escape Stasis . | . . . . Rewire . | . . . . Trap . | . . . . Miscellaneous . | . . . . Route ------- -11/Scrapyard -10/Materials (discovered 3 exits: *Mat x2 / [*Min]) -9/Materials -9/Mines (discovered 1 exit: [*Mat]) History --------- Turn | Location | Event 12 | -11/Scrapyard | Discovered new exit (range 15) 107 | -11/Scrapyard | Entered Materials 318 | -10/Materials | Build established: Mutant 356 | -10/Materials | Discovered new exit (range 16) 470 | -10/Materials | Discovered new exit (range 7) 597 | -10/Materials | Discovered new exit (range 16) 626 | -10/Materials | Entered another Materials area 626 | -9/Materials | Evolved 2 slots: Propulsion x1, Utility x1 1023 | -9/Materials | Discovered new exit (range 8) 1045 | -9/Materials | Entered Mines 1046 | -9/Mines | YI-UF0 nonchalantly dropped a Grenade Launcher on the ground 1106 | -9/Mines | Released all parts (2) 1119 | -9/Mines | Discovered new exit (range 4) 1122 | -9/Mines | Met a Derelict who couldn't figure out how to use a Trap Extractor 1137 | -9/Mines | Lost 6 parts (3n1u2w) 1258 | -9/Mines | Core integrity fell below 50% 1294 | -9/Mines | Lost 4 parts (1p1n1u1w) 1327 | -9/Mines | Core integrity fell below 20% 1330 | -9/Mines | Destroyed by YI-UF0 with YI-UF0's Doublenader Last Messages --------------- Aluminum Leg destroyed. The unstable cave ceiling collapses. Imp. Terrain Scanner destroyed. The unstable cave ceiling collapses. Cld. Ion Engine destroyed. The unstable cave ceiling collapses. Remote Datajack destroyed. YI-UF0: "BADABOOM!" S-10 Pest destroyed. YI-UF0: "KAPOW!" S-10 Pest destroyed. The unstable cave ceiling collapses. Kicked K-01 Serf. YG2I7:TLHO30RXFOLTD6KYZIHB/G1LDGV4 The unstable cave ceiling collapses. K-01 Serf destroyed. The unstable cave ceiling collapses. System corrupted: Matter fused (-10). Imp. Titanium Leg destroyed. Assault Rifle destroyed. Map ----- +----------------------------------------------------+ | ## ##?????????????????????????? | | # ##????????????????????????? | | # #????????????????????????? | | # #?#??????????????????????? | | ##????????????????????????? | | # ##?????????????????????????? | | ## #????#?????????????????????? | | ######??????????????????????????? | | ?????????????????????#??????????? | | #???#??#????????? ###????????? | | #????#####?????? ???????? | | ##?### ####??? ???????? | | #?# # ##?? ??????? | | ### ##?# ??????? | | = ]# = ### #????????? | | [ = # #?????????? | | * != # * #??????????? | | # =%! ##??????????? | | #?#?# ] ##???????????? | | #???### ! ##????????????? | | ######### ##?????????????? | | # #??########???? | | # #??# ##??? | | # #??# #??? | | # """ ## ## #??? | | # """ g @ #??? | | ? ?""" # ## ##??? | | ? * = #?# #??? | | # """" [ ###?### #??? | | #? """" [% #?????## #?? | | ????"""* * ??????## #?? | | ???? =% # ???????# #?? | | ????"""[ ## ??????## #?? | | ???"""" ?# ???????## #?? | | ?????"" ??# ?????????####?? | | ????? ??# ?????????????? | | ?????"" ???# ?????????????? | | ??????" ????## ?????????????? | | ?????????????#### ????????????? | | ?????????????????##?????????????? | | ????????????????????????????????? | | ????????????????????????????????? | | | | | | | | | | | | | | | | | +----------------------------------------------------+ Best States ------------- Heat Dissipation 28 Energy Generation 14 Energy Capacity 280 Matter Stores 300 Matter Capacity 300 Sight Range 16 Robot Scan Range 14 Terrain Scan Range 16 Terrain Scan Density 10 Evasion (%) 55 Item Schematics ----------------- Lgt. Nuclear Core | -9/Materials | Scanalyzed Robot Schematics ------------------ None Fabricated ------------ Nothing Repaired ---------- Nothing Alien Tech Used ----------------- None Achievements -------------- Dynamic Key Challenges ------------ None Game ------ Seed RemoteMomentumPerforator Manual? 0 Play Time 00:22:28 Cumulative 4.4 hours Start 2025.06.03 @ 21:44:06 End 2025.06.03 @ 22:20:00 Sessions 3 Manual Loads 0 Difficulty Rogue Special Mode None Game No. 6 Rogue 6 Adventurer 0 Explorer 0 Win Type - Total 0 Types 0/0/0/0/0/0/0/0/0/0 Lore% 3 Gallery% 6 Achievement% 9 Wizard Run 0 Options --------- Layout 0 ASCII 0 Keyboard 0 Movement Mouse Keybinds 0 Fullscreen 1 Font 18/SmallcapsGlow Map View 76x50 Zoom Use 0% Tactical HUD 0 Map Filters NONE Filters NONE Steam 1 RUN: 1de6278b-719d-47dd-8286-6f91c21fb711